bitfinex/quotes_SOLUSD_20250830
["timestamp","ask_amount","ask_price","bid_price","bid_amount"]
[1756559842605,1e-08,198.62,198.61,72.30411807]
[1756559842796,1e-08,198.65,198.61,84.89160107]
[1756559842999,1e-08,198.65,198.64,21.29912487]
[1756559843215,1e-08,198.66,198.65,13.59559401]
[1756559843431,1e-08,198.66,198.65,53.02310423]
[1756559843607,7.70353086,198.74,198.65,57.90452177]
[1756559843800,7.70353086,198.74,198.7,13.59559401]
[1756559844118,7.70353086,198.74,198.71,45.26]
[1756559844290,7.70353086,198.76,198.71,52.96353086]
[1756559844490,0.6,198.78,198.71,52.96353086]
[1756559844702,8.30353086,198.78,198.73,7.70353086]
[1756559844949,8.30353086,198.78,198.74,45.24]
[1756559845227,209.9,198.87,198.74,45.24]
[1756559845228,0.6,198.83,198.74,0.69]
[1756559845420,0.6,198.8,198.75,57.9749774]
[1756559845725,7.70353086,198.81,198.76,52.94353086]
[1756559846220,7.70353086,198.8,198.75,127.03144654]
[1756559846527,7.70353086,198.78,198.75,5.03144654]
[1756559846714,8.30353086,198.78,198.76,45.22]
[1756559846903,7.70353086,198.78,198.76,45.22]
[1756559847104,0.6,198.82,198.76,45.22]
[1756559847308,7.70353086,198.8,198.77,5.03094028]
[1756559847525,26.0,198.85,198.75,5.03123624]
[1756559847526,7.70353086,198.79,198.75,5.03123624]
[1756559847834,0.6,198.79,198.75,50.23123624]
[1756559848002,0.6,198.78,198.75,5.03123624]
[1756559848201,7.70353086,198.8,198.75,57.9347671]
[1756559848528,7.70353086,198.81,198.76,8.39353086]
[1756559848834,7.70353086,198.81,198.76,53.57353086]
[1756559849038,7.70353086,198.81,198.77,7.70353086]
[1756559849229,7.70353086,198.81,198.76,0.69]
[1756559849403,7.70353086,198.8,198.78,5.03068719]
[1756559849940,7.70353086,198.8,198.77,45.18]
[1756559850124,7.70353086,198.78,198.77,45.16]
[1756559850434,7.70353086,198.8,198.77,45.16]
[1756559850800,7.70353086,198.79,198.76,45.16]
[1756559850999,7.70353086,198.78,198.76,45.16]
[1756559851218,7.70353086,198.79,198.76,45.16]
[1756559851403,7.70353086,198.79,198.76,45.14]
[1756559851607,7.70353086,198.79,198.75,5.03144654]
[1756559851901,7.70353086,198.76,198.74,45.14]
[1756559852205,5.02942211,198.83,198.73,5.0319529]
[1756559852206,0.6,198.79,198.73,5.0319529]
[1756559852408,7.70353086,198.76,198.74,45.14]
[1756559852600,8.30353086,198.75,198.68,18.62881325]
[1756559852809,7.70353086,198.71,198.69,45.12]
[1756559853104,7.70353086,198.73,198.69,45.77]
[1756559853304,7.70353086,198.72,198.7,45.12]
[1756559853523,7.70353086,198.72,198.7,50.15250266]
[1756559854045,0.6,198.75,198.7,50.15250266]
[1756559854343,7.70353086,198.72,198.7,50.15250266]
[1756559854497,7.70353086,198.71,198.63,12.58595849]
[1756559854702,7.70353086,198.69,198.65,13.59559401]
[1756559855005,7.70353086,198.69,198.66,0.65]
[1756559855203,7.70353086,198.69,198.67,45.1]
[1756559855419,0.6,198.73,198.67,45.1]
[1756559855624,7.70353086,198.69,198.67,45.1]
[1756559855858,7.70353086,198.68,198.67,45.08]
[1756559856132,7.70353086,198.68,198.63,14.24559401]
[1756559856133,7.70353086,198.68,198.66,45.08]
[1756559856299,7.70353086,198.67,198.66,45.08]
[1756559856930,7.70353086,198.67,198.66,50.11372596]
[1756559857138,7.70353086,198.71,198.66,58.46725682]
[1756559857317,7.70353086,198.74,198.69,7.70353086]
[1756559857631,0.06,198.81,198.72,7.70353086]
[1756559857632,7.70353086,198.77,198.72,7.70353086]
[1756559857814,0.66,198.81,198.73,45.71]
[1756559858001,7.70353086,198.77,198.73,45.71]
[1756559858312,7.70353086,198.79,198.74,8.35353086]
[1756559858518,7.70353086,198.79,198.73,45.06]
[1756559858519,0.06,198.81,198.75,0.65]
[1756559858726,7.70353086,198.79,198.76,45.06]
[1756559859239,0.06,198.81,198.77,5.68094028]
[1756559859453,7.70353086,198.8,198.77,5.68094028]
[1756559859823,7.70353086,198.79,198.77,5.03094028]
[1756559860142,0.06,198.81,198.77,5.03094028]
[1756559860143,0.06,198.81,198.78,8.35353086]
[1756559860334,0.06,198.81,198.79,45.04]
[1756559860538,0.06,198.81,198.79,45.69]
[1756559860914,0.06,198.81,198.8,45.02]
[1756559861143,0.06,198.81,198.8,50.05018108]
[1756559861314,0.06,198.81,198.8,50.70018108]
[1756559861850,0.06,198.81,198.8,71.99930595]
[1756559862226,0.06,198.81,198.8,50.70018108]
[1756559862419,0.06,198.81,198.8,50.05018108]
[1756559862619,0.06,198.81,198.8,58.40371194]
[1756559863014,0.06,198.81,198.8,50.70018108]
[1756559863543,0.06,198.81,198.8,50.01018108]
[1756559863844,0.06,198.83,198.81,13.59559401]
[1756559864152,0.06,198.85,198.84,39.59559401]
[1756559864314,0.06,198.85,198.82,0.65]
[1756559864518,0.06,198.85,198.83,52.66353086]
[1756559864817,0.06,198.85,198.8,5.03018108]
[1756559865020,7.70353086,198.84,198.81,44.96]
[1756559865230,7.70353086,198.84,198.81,49.98969894]
[1756559865725,0.06,198.85,198.82,0.65]
[1756559866415,7.70353086,198.84,198.81,5.02969894]
[1756559866624,0.06,198.85,198.82,44.94]
[1756559866823,0.06,198.85,198.76,5.03119339]
[1756559867058,0.66,198.84,198.74,5.68146799]
[1756559867246,5.02967508,198.82,198.74,35.32]
[1756559867443,0.66,198.81,198.74,35.32]
[1756559867829,7.70353086,198.76,198.74,35.32]
[1756559868031,7.70353086,198.76,198.74,35.97]
[1756559868234,0.66,198.83,198.75,0.65]
[1756559868460,7.70353086,198.76,198.72,0.65]
[1756559868760,7.70353086,198.76,198.73,45.57]
[1756559868925,7.70353086,198.76,198.74,5.0316997]
[1756559869432,7.70353086,198.76,198.75,0.65]
[1756559869820,7.70353086,198.76,198.74,49.9316997]
[1756559870052,7.70353086,198.75,198.74,49.9316997]
[1756559870443,7.70353086,198.76,198.74,50.5816997]
[1756559870754,7.70353086,198.8,198.76,13.59559401]
[1756559870951,7.70353086,198.8,198.78,5.03068719]
[1756559871130,7.70353086,198.81,198.78,5.68068719]
[1756559871330,7.70353086,198.8,198.78,5.68068719]
[1756559871651,7.70353086,198.79,198.75,13.59559401]
[1756559871828,7.70353086,198.79,198.7,12.58117494]
[1756559871829,7.70353086,198.76,198.72,13.59559401]
[1756559872133,7.70353086,198.75,198.73,44.88]
[1756559872328,0.66,198.82,198.74,0.65]
[1756559872526,7.70353086,198.77,198.74,0.65]
[1756559872754,0.66,198.82,198.73,44.88]
[1756559872951,7.70353086,198.75,198.74,5.0316997]
[1756559873154,7.70353086,198.76,198.74,5.0316997]
[1756559873328,5.68971985,198.82,198.74,5.6816997]
[1756559873329,7.70353086,198.77,198.74,5.6816997]
[1756559873945,0.66,198.82,198.74,5.6816997]
[1756559874146,7.70353086,198.76,198.74,5.6816997]
[1756559874349,7.70353086,198.76,198.73,44.88]
[1756559874350,7.70353086,198.76,198.75,5.68144654]
[1756559874549,7.70353086,198.76,198.74,5.03169732]
[1756559874753,7.70353086,198.75,198.74,44.84]
[1756559874948,0.66,198.8,198.74,44.84]
[1756559875150,7.70353086,198.75,198.74,44.84]
[1756559875336,7.70353086,198.75,198.69,122.0]
[1756559875535,7.70353086,198.7,198.68,0.03]
[1756559875740,0.66,198.75,198.69,44.84]
[1756559876363,0.66,198.75,198.69,49.87291225]
[1756559876736,0.66,198.75,198.68,0.03]
[1756559876737,26.0,198.73,198.68,0.03]
[1756559876939,7.70353086,198.69,198.68,0.03]
[1756559877456,7.70353086,198.69,198.68,5.71321924]
[1756559877772,7.70353086,198.72,198.68,18.29626735]
[1756559878061,7.70353086,198.72,198.69,0.65]
[1756559878231,7.70353086,198.72,198.7,45.45]
[1756559878434,0.66,198.79,198.71,5.68245936]
[1756559878633,3.94104735,198.79,198.71,5.68245936]
[1756559878833,7.70353086,198.72,198.71,49.83245936]
[1756559880262,7.70353086,198.72,198.69,5.03296592]
[1756559880445,7.70353086,198.7,198.69,5.03296592]
[1756559880758,8.36353086,198.7,198.68,0.03]
[1756559881058,7.70353086,198.69,198.68,5.06321924]
[1756559881765,0.66,198.75,198.68,5.06321924]
[1756559881962,7.70353086,198.69,198.68,5.06321924]
[1756559882133,3.94721772,198.75,198.68,0.03]
[1756559882134,0.66,198.75,198.68,0.03]
[1756559882340,7.70353086,198.69,198.68,0.03]
[1756559883561,0.66,198.75,198.68,0.03]
[1756559883749,7.70353086,198.69,198.68,0.03]
[1756559885052,11.66014927,198.69,198.68,0.03]
[1756559885368,16.69311519,198.69,198.68,0.03]
[1756559885779,26.0,198.67,198.66,0.03]
[1756559885940,37.00014927,198.67,198.66,0.03]
[1756559886145,37.66014927,198.67,198.66,0.03]
[1756559887557,11.00014927,198.67,198.66,0.03]
[1756559888268,7.70353086,198.67,198.66,0.03]
[1756559889378,0.66,198.74,198.66,0.72]
[1756559889685,7.70353086,198.69,198.66,0.72]
[1756559889855,7.70353086,198.68,198.67,0.69]
[1756559890050,26.0,198.73,198.67,0.69]
[1756559890284,7.70353086,198.71,198.68,13.59559401]
[1756559890574,7.70353086,198.7,198.69,5.03296592]
[1756559890982,7.70353086,198.7,198.69,5.72296592]
[1756559891172,79.9,198.79,198.69,5.72296592]
[1756559891365,7.70353086,198.72,198.69,5.72296592]
[1756559891564,7.70353086,198.71,198.7,0.69]
[1756559891781,7.70353086,198.73,198.7,0.69]
[1756559891951,26.0,198.74,198.7,14.28559401]
[1756559891952,7.70353086,198.74,198.7,14.28559401]
[1756559892151,7.70353086,198.75,198.71,14.28559401]
[1756559892384,7.70353086,198.75,198.72,0.69]
[1756559892558,7.70353086,198.75,198.73,5.7219529]
[1756559893064,0.06,198.83,198.74,0.69]
[1756559893266,7.70353086,198.75,198.74,0.69]
[1756559893466,26.0,198.8,198.74,0.69]
[1756559893651,5.08942364,198.83,198.74,0.69]
[1756559893652,7.70353086,198.75,198.74,0.69]
[1756559893853,7.70353086,198.76,198.73,5.0319529]
[1756559894075,7.70353086,198.76,198.73,5.7219529]
[1756559894278,7.70353086,198.76,198.74,0.69]
[1756559894460,26.0,198.8,198.75,5.03144654]
[1756559894658,7.70353086,198.76,198.75,5.03144654]
[1756559895071,26.0,198.8,198.75,5.03144654]
[1756559895273,7.70353086,198.76,198.75,5.03144654]
[1756559895472,7.70353086,198.76,198.72,5.03220611]
[1756559895783,7.70353086,198.76,198.7,52.36353086]
[1756559895784,7.70353086,198.73,198.7,5.03271263]
[1756559895986,7.70353086,198.71,198.69,50.34293381]
[1756559896166,26.0,198.8,198.71,13.59559401]
[1756559896373,7.70353086,198.77,198.73,5.0319529]
[1756559896557,7.70353086,198.77,198.74,0.69]
[1756559896757,26.0,198.8,198.7,5.03271263]
[1756559897060,7.70353086,198.73,198.7,63.22830664]
[1756559897380,7.70353086,198.72,198.7,5.72271263]
[1756559897580,26.0,198.79,198.7,5.72271263]
[1756559897785,7.70353086,198.74,198.7,5.03271263]
[1756559897955,7.70353086,198.74,198.71,0.69]
[1756559898278,7.70353086,198.74,198.72,5.03220611]
[1756559898478,7.70353086,198.73,198.72,5.03220611]
[1756559899162,26.0,198.77,198.72,5.72220611]
[1756559899360,7.70353086,198.74,198.72,5.03220611]
[1756559899561,26.0,198.77,198.72,5.03220611]
[1756559899767,26.0,198.78,198.73,0.69]
[1756559900179,7.70353086,198.75,198.73,0.69]
[1756559900351,7.70353086,198.75,198.73,5.72173559]
[1756559901205,7.70353086,198.74,198.71,5.03222269]
[1756559901491,7.70353086,198.73,198.71,5.03222269]
[1756559901985,26.0,198.78,198.71,5.03222269]
[1756559902189,7.70353086,198.73,198.71,5.03222269]
[1756559902406,7.70353086,198.72,198.68,5.03321924]
[1756559902578,7.70353086,198.69,198.68,5.03321924]
[1756559902961,7.70353086,198.69,198.67,5.03343686]
[1756559904083,33.70353086,198.72,198.68,0.69]
[1756559904265,33.70353086,198.74,198.69,14.28559401]
[1756559904463,7.70353086,198.73,198.69,14.28559401]
[1756559904684,7.70353086,198.75,198.7,8.39353086]
[1756559904888,7.70353086,198.76,198.71,7.70353086]
[1756559905089,7.70353086,198.75,198.71,0.69]
[1756559905462,7.70353086,198.75,198.72,0.69]
[1756559905672,7.70353086,198.75,198.73,0.69]
[1756559905870,7.70353086,198.75,198.7,52.91353086]
[1756559906064,7.70353086,198.75,198.72,5.03220611]
[1756559906265,7.70353086,198.75,198.72,5.72220611]
[1756559906761,7.70353086,198.73,198.72,5.03220611]
[1756559906957,26.0,198.76,198.72,5.03220611]
[1756559907274,7.70353086,198.73,198.72,5.03220611]
[1756559908088,7.70353086,198.73,198.7,45.19]
[1756559908089,7.70353086,198.73,198.71,5.03245936]
[1756559908400,7.70353086,198.74,198.71,5.03245936]
[1756559908868,7.70353086,198.74,198.71,5.72245936]
[1756559909192,26.0,198.76,198.71,5.72245936]
[1756559909193,7.70353086,198.73,198.71,5.72245936]
[1756559909373,7.70353086,198.73,198.71,5.03245936]
[1756559909575,7.70353086,198.73,198.7,5.03271263]
[1756559909889,7.70353086,198.73,198.7,50.18271263]
[1756559910190,7.70353086,198.75,198.71,0.69]
[1756559910379,7.70353086,198.75,198.7,57.19624349]
[1756559910582,7.70353086,198.75,198.72,0.69]
[1756559910781,7.70353086,198.74,198.7,49.52271263]
[1756559910980,7.70353086,198.71,198.7,0.03]
[1756559913483,26.17167932,198.79,198.7,0.03]
[1756559913484,33.70353086,198.72,198.7,5.7525096]
[1756559913690,7.70353086,198.71,198.7,0.03]
[1756559914275,26.0,198.72,198.7,0.03]
[1756559914475,7.70353086,198.71,198.7,0.03]
[1756559914676,26.0,198.72,198.7,0.03]
[1756559914890,7.70353086,198.71,198.7,5.75261724]
[1756559915086,7.70353086,198.72,198.71,0.69]
[1756559915486,7.70353086,198.72,198.71,5.72244806]
[1756559915807,7.70353086,198.72,198.7,5.06266636]
[1756559915970,7.70353086,198.71,198.7,0.03]
[1756559916173,11.00696839,198.71,198.7,0.03]
[1756559916593,37.00696839,198.71,198.7,0.03]
[1756559917104,29.30343753,198.71,198.7,0.03]
[1756559917268,37.00696839,198.71,198.7,0.03]
[1756559917668,29.30343753,198.71,198.7,0.03]
[1756559917901,37.00696839,198.71,198.7,0.03]
[1756559919180,11.00696839,198.71,198.7,0.72]
[1756559919380,3.30343753,198.71,198.7,0.72]
[1756559919704,7.70353086,198.73,198.7,0.72]
[1756559920000,7.70353086,198.71,198.7,0.72]
[1756559920996,7.70353086,198.72,198.7,0.72]
[1756559921302,26.0,198.77,198.71,5.03245936]
[1756559921479,7.70353086,198.74,198.72,0.69]
[1756559921679,7.70353086,198.74,198.73,0.69]
[1756559921978,3.30848996,198.74,198.7,0.03]
[1756559922208,7.70353086,198.72,198.71,0.69]
[1756559922500,26.0,198.77,198.71,0.69]
[1756559922801,7.70353086,198.73,198.71,0.69]
[1756559923115,7.70353086,198.73,198.7,5.06260747]
[1756559923116,7.70353086,198.72,198.7,5.06260747]
[1756559923429,7.70353086,198.72,198.71,0.69]
[1756559923702,7.70353086,198.73,198.71,0.69]
[1756559923900,7.70353086,198.73,198.72,0.69]
[1756559924103,26.0,198.77,198.72,0.69]
[1756559924290,7.70353086,198.73,198.7,5.06260747]
[1756559924813,26.0,198.77,198.7,5.06260747]
[1756559925107,0.06,198.8,198.72,21.29912487]
[1756559925308,7.70353086,198.78,198.73,5.7219529]
[1756559925485,7.70353086,198.77,198.74,0.69]
[1756559925807,7.70353086,198.77,198.75,0.69]
[1756559926406,7.70353086,198.77,198.76,0.69]
[1756559926885,7.70353086,198.77,198.73,5.0319529]
[1756559927075,7.70353086,198.77,198.74,0.69]
[1756559927290,7.70353086,198.75,198.73,5.0319529]
[1756559927598,7.70353086,198.74,198.71,5.03245936]
[1756559927805,7.70353086,198.72,198.71,5.03245936]
[1756559928003,7.70353086,198.72,198.71,5.72245936]
[1756559928304,0.06,198.8,198.72,13.59559401]
[1756559928486,7.70353086,198.77,198.74,13.59559401]
[1756559928692,0.06,198.8,198.75,0.69]
[1756559928924,7.70353086,198.78,198.75,0.69]
[1756559929096,7.70353086,198.78,198.72,13.59559401]
[1756559929097,7.70353086,198.78,198.76,0.69]
[1756559929296,0.06,198.8,198.77,5.03094028]
[1756559929506,7.70353086,198.78,198.77,5.72094028]
[1756559929709,0.06,198.8,198.77,5.72094028]
[1756559929905,3.36721157,198.8,198.77,5.72094028]
[1756559930109,3.36721157,198.8,198.78,0.69]
[1756559930110,7.70353086,198.79,198.78,0.69]
[1756559930314,11.01074243,198.79,198.78,0.69]
[1756559930516,0.06,198.8,198.77,5.03094028]
[1756559930702,7.70353086,198.79,198.78,0.69]
[1756559931421,0.06,198.8,198.78,14.28559401]
[1756559931593,0.06,198.8,198.79,13.59559401]
[1756559931793,0.06,198.8,198.79,8.39353086]
[1756559932014,0.06,198.83,198.79,8.39353086]
[1756559932200,0.06,198.83,198.81,7.70353086]
[1756559932405,0.06,198.83,198.8,52.59353086]
[1756559932602,0.06,198.83,198.81,0.69]
[1756559932818,0.06,198.83,198.82,5.02967508]
[1756559932995,0.06,198.83,198.82,5.71967508]
[1756559936698,0.06,198.83,198.82,0.69]
[1756559938122,4.84915033,198.83,198.82,5.02967508]
[1756559938449,4.84915033,198.83,198.82,49.83967508]
[1756559938998,0.06,198.83,198.82,49.83967508]
[1756559939229,4.84915033,198.83,198.82,49.83967508]
[1756559939399,0.06,198.83,198.82,49.83967508]
[1756559939721,4.84915033,198.83,198.82,49.83967508]
[1756559940511,0.06,198.83,198.82,5.71967508]
[1756559940710,4.84915033,198.83,198.82,49.81967508]
[1756559940910,0.06,198.83,198.82,63.41526909]
[1756559941413,4.84915033,198.83,198.81,57.67559401]
[1756559941728,4.84915033,198.83,198.81,44.08]
[1756559941729,4.78915033,198.82,198.81,44.08]
[1756559941910,4.84915033,198.82,198.77,44.08]
[1756559942100,4.78915033,198.78,198.77,44.08]
[1756559942302,26.0,198.81,198.77,49.11094028]
[1756559942618,4.78915033,198.79,198.78,0.67]
[1756559942802,4.78915033,198.79,198.77,49.09094028]
[1756559943008,4.78915033,198.78,198.77,49.09094028]
[1756559943403,0.06,198.83,198.77,49.76094028]
[1756559943707,4.78915033,198.81,198.78,0.67]
[1756559943909,4.78915033,198.79,198.77,5.03094028]
[1756559944212,26.0,198.77,198.75,0.03]
[1756559944427,4.78915033,198.76,198.75,0.03]
[1756559945098,30.84915033,198.76,198.75,0.03]
[1756559945707,34.15291913,198.76,198.75,0.03]
[1756559946305,39.18411252,198.76,198.75,0.03]
[1756559947201,34.09291913,198.76,198.75,0.03]
[1756559947411,4.78915033,198.76,198.75,0.03]
[1756559948941,26.0,198.79,198.75,0.03]
[1756559949239,4.78915033,198.77,198.75,0.7]
[1756559949412,4.78915033,198.79,198.75,0.7]
[1756559949805,4.78915033,198.77,198.75,0.03]
[1756559950003,4.78915033,198.77,198.76,0.67]
[1756559950536,0.06,198.83,198.76,5.70119339]
[1756559950704,0.06,198.83,198.79,13.59559401]
[1756559950705,4.78915033,198.81,198.79,13.59559401]
[1756559950903,4.78915033,198.81,198.79,58.24559401]
[1756559951307,7.6657021,198.81,198.79,58.24559401]
[1756559951612,7.6657021,198.81,198.8,0.67]
[1756559952537,0.06,198.83,198.77,135.59559401]
[1756559952715,7.6657021,198.79,198.78,5.03068554]
[1756559953043,7.6657021,198.79,198.76,0.67]
[1756559953044,0.06,198.83,198.76,0.67]
[1756559953244,7.6657021,198.77,198.76,44.63]
[1756559953460,7.6657021,198.77,198.76,0.67]
[1756559953813,26.0,198.8,198.76,0.67]
[1756559954006,7.6657021,198.79,198.76,5.70119339]
[1756559954232,7.6657021,198.8,198.77,0.67]
[1756559954423,7.6657021,198.78,198.77,5.03086738]
[1756559955149,33.6657021,198.78,198.75,0.03]
[1756559955316,7.6657021,198.76,198.75,0.03]
[1756559956064,33.7257021,198.76,198.75,0.03]
[1756559956341,16.06682682,198.76,198.75,0.03]
[1756559957346,16.06682682,198.76,198.73,0.03]
[1756559957347,15.3314042,198.74,198.73,0.03]
[1756559957532,18.64133553,198.74,198.73,0.03]
[1756559957737,26.0,198.71,198.7,0.03]
[1756559957937,33.6657021,198.71,198.7,0.03]
[1756559958242,33.7257021,198.71,198.7,0.03]
[1756559958436,38.69816146,198.71,198.7,0.03]
[1756559958633,7.6657021,198.71,198.7,0.03]
[1756559959850,12.75816146,198.71,198.7,0.03]
[1756559960048,7.6657021,198.69,198.68,0.03]
[1756559960923,33.6657021,198.69,198.68,0.03]
[1756559961338,33.6657021,198.69,198.68,0.7]
[1756559961656,7.6657021,198.69,198.68,0.03]
[1756559961957,12.69866802,198.69,198.68,0.03]
[1756559962956,12.69866802,198.69,198.64,0.03]
[1756559962957,16.06547713,198.69,198.64,0.03]
[1756559963250,26.0,198.67,198.64,0.03]
[1756559963472,7.6657021,198.65,198.64,0.03]
[1756559967656,43.84,198.69,198.64,0.03]
[1756559967830,7.6657021,198.65,198.64,0.7]
[1756559968025,7.6657021,198.65,198.64,0.03]
[1756559968250,7.6657021,198.65,198.64,0.7]
[1756559968629,7.6657021,198.65,198.64,0.03]
[1756559968844,33.6657021,198.65,198.64,0.03]
[1756559969526,26.0,198.65,198.64,0.03]
[1756559969755,33.6657021,198.65,198.64,0.03]
[1756559969951,26.0,198.65,198.64,0.03]
[1756559970166,26.0,198.65,198.64,0.7]
[1756559970334,33.6657021,198.65,198.64,0.7]
[1756559971152,5.034992,198.72,198.64,5.73423278]
[1756559971353,7.6657021,198.68,198.65,0.72]
[1756559971744,7.6657021,198.67,198.65,0.72]
[1756559972136,0.06,198.74,198.65,0.72]
[1756559972344,7.6657021,198.67,198.65,0.72]
[1756559972546,26.0,198.71,198.65,0.72]
[1756559972761,7.6657021,198.68,198.65,0.72]
[1756559972946,7.6657021,198.67,198.65,0.72]
[1756559973266,7.6657021,198.67,198.66,5.03372596]
[1756559973440,7.6657021,198.67,198.66,5.75372596]
[1756559973760,0.06,198.74,198.66,5.75372596]
[1756559973761,7.6657021,198.69,198.66,5.75372596]
[1756559973965,0.06,198.74,198.66,5.75372596]
[1756559973966,7.6657021,198.7,198.67,0.72]
[1756559974337,7.6657021,198.7,198.67,122.0]
[1756559974540,7.6657021,198.68,198.66,5.03372596]
[1756559974756,7.6657021,198.67,198.66,5.03372596]
[1756559975364,7.6657021,198.67,198.66,0.72]
[1756559976250,7.60045981,198.67,198.66,0.72]
[1756559976447,7.6657021,198.68,198.66,0.72]
[1756559976652,7.6657021,198.69,198.66,0.72]
[1756559977248,7.6657021,198.69,198.67,5.03347259]
[1756559977465,7.6657021,198.69,198.68,0.72]
[1756559977676,0.06,198.74,198.68,0.72]
[1756559977855,7.6657021,198.71,198.68,0.72]
[1756559978565,7.6657021,198.71,198.67,17.61715407]
[1756559978865,0.06,198.74,198.68,0.72]
[1756559979071,7.6657021,198.72,198.68,0.72]
[1756559979371,7.6657021,198.73,198.69,17.61538073]
[1756559979670,7.6657021,198.73,198.7,0.72]
[1756559979871,7.7257021,198.74,198.71,13.59559401]
[1756559980178,7.7257021,198.74,198.72,0.72]
[1756559980339,7.6657021,198.73,198.7,0.72]
[1756559980545,7.6657021,198.73,198.71,0.72]
[1756559980972,0.06,198.74,198.71,0.72]
[1756559981471,0.06,198.74,198.72,5.03220611]
[1756559981668,0.06,198.74,198.73,0.72]
[1756559982165,4.85373621,198.74,198.73,0.72]
[1756559983265,0.06,198.74,198.73,0.72]
[1756559983485,0.06,198.74,198.73,5.7519529]
[1756559983669,0.06,198.74,198.73,19.34754691]
[1756559984459,0.06,198.74,198.73,27.01822389]
[1756559985277,0.06,198.76,198.74,13.59559401]
[1756559985577,0.06,198.78,198.76,13.59559401]
[1756559986071,0.06,198.78,198.77,14.31559401]
[1756559987346,7.73067698,198.78,198.72,17.61233969]
[1756559987549,0.06,198.78,198.73,43.62]
[1756559987846,7.67067698,198.74,198.71,48.6524337]
[1756559988050,0.06,198.78,198.72,0.72]
[1756559988269,0.06,198.78,198.71,48.6524337]
[1756559988649,0.06,198.78,198.71,5.0324337]
[1756559989081,7.67067698,198.73,198.72,0.72]
[1756559989376,7.67067698,198.73,198.72,5.75220611]
[1756559990159,0.06,198.78,198.72,5.75220611]
[1756559990477,7.67067698,198.73,198.72,5.75220611]
[1756559991976,7.67067698,198.76,198.73,13.59559401]
[1756559992177,0.06,198.78,198.74,0.72]
[1756559992350,0.06,198.78,198.73,13.59559401]
[1756559992351,7.67067698,198.76,198.75,0.72]
[1756559992969,7.67067698,198.76,198.74,43.56]
[1756559993279,0.06,198.78,198.74,44.28]
[1756559993280,7.67067698,198.75,198.74,44.28]
[1756559993672,7.67067698,198.75,198.71,5.03245936]
[1756559993879,7.67067698,198.73,198.72,44.26]
[1756559994658,7.67067698,198.73,198.7,5.03266835]
[1756559994867,7.67067698,198.71,198.7,48.57266835]
[1756559995068,7.67067698,198.71,198.7,49.29266835]
[1756559996483,7.67067698,198.71,198.7,48.57266835]
[1756559996665,7.67067698,198.71,198.7,43.52]
[1756559997374,26.0,198.75,198.7,44.24]
[1756559997570,7.67067698,198.71,198.7,44.24]
[1756559998088,26.0,198.76,198.7,5.75271263]
[1756559998259,7.67067698,198.73,198.71,0.72]
[1756559998459,7.67067698,198.73,198.72,0.72]
[1756559999389,7.67067698,198.73,198.72,5.75220611]
[1756559999569,7.67067698,198.73,198.69,5.03296592]
[1756559999767,7.67067698,198.7,198.69,5.03296592]
[1756560000197,7.67067698,198.7,198.68,43.48]
[1756560000380,7.67067698,198.69,198.65,43.51]
[1756560000584,7.67067698,198.66,198.65,0.03]
[1756560001025,7.67067698,198.66,198.65,5.06397936]
[1756560001194,7.67067698,198.67,198.65,5.74397936]
[1756560001500,47.61554659,198.77,198.66,0.68]
[1756560001501,4.19554659,198.77,198.66,0.68]
[1756560001696,7.67067698,198.7,198.66,0.68]
[1756560002295,7.67067698,198.7,198.66,13.59559401]
[1756560002497,26.06,198.77,198.68,13.59559401]
[1756560002676,7.67067698,198.74,198.7,13.59559401]
[1756560002992,7.67067698,198.74,198.71,0.68]
[1756560003174,7.67067698,198.74,198.72,0.68]
[1756560003493,4.7944345,198.74,198.73,5.0319529]
[1756560004576,0.06,198.78,198.73,5.0319529]
[1756560004577,0.06,198.78,198.73,5.7119529]
[1756560004771,4.7944345,198.75,198.73,5.7119529]